fUSD/lending_fUSD_20260121
["ID","MTS","AMOUNT","RATE_DAILY","PERIOD"]
[402949014,1769010640802,-151.0,0.00016468,2]
[402949015,1769010640811,-628.0,0.00016469,2]
[402949016,1769010640821,-151.0,0.00016471,2]
[402949017,1769010640831,-500.0,0.00016478,2]
[402949018,1769010640840,-500.0,0.00016478,2]
[402949019,1769010640850,-500.0,0.00016478,2]
[402949020,1769010640859,-500.0,0.00016478,2]
[402949021,1769010640869,-500.0,0.00016478,2]
[402949022,1769010640878,-500.0,0.00016478,2]
[402949023,1769010640888,-500.0,0.00016484,2]
[402949024,1769010640898,-500.0,0.00016484,2]
[402949025,1769010640907,-500.0,0.00016484,2]
[402949026,1769010640916,-500.0,0.00016484,2]
[402949027,1769010640930,-21841.8461667,0.00016485,2]
[402949028,1769010640939,-1748.0,0.00016502,2]
[402949029,1769010640949,-521.32,0.00016515,2]
[402949030,1769010640958,-302.41974858,0.00016532,2]
[402949031,1769010640969,-530.71,0.00016532,2]
[402949032,1769010640978,-994.41,0.00016547,2]
[402949033,1769010640987,-476.0,0.0001655,2]
[402949034,1769010640999,-1960.0,0.00016553,2]
[402949035,1769010641008,-329.0,0.00016583,2]
[402949036,1769010641018,-277.37435585,0.00016616,2]
[402949037,1769010641028,-209.43,0.00016675,2]
[402949038,1769010641037,-507.94,0.00016679,2]
[402949039,1769010641046,-709.03488781,0.00016681,2]
[402949040,1769010641056,-21841.8461667,0.00016687,2]
[402949041,1769010641065,-935.15945223,0.00016691,2]
[402949042,1769010641075,-5804.50770503,0.00016742,2]
[402949043,1769010641084,-500.0,0.00016821,2]
[402949044,1769010641094,-994.41,0.00016821,2]
[402949045,1769010641103,-21841.8461667,0.00016889,2]
[402949046,1769010641112,-709.03488781,0.00016925,2]
[402949047,1769010641122,-21439.0327019,0.00016931,2]
[402949048,1769010641131,-285.18,0.0001694,2]
[402949049,1769010641141,-166.66,0.00016971,2]
[402949050,1769010641151,-500.0,0.00017015,2]
[402949051,1769010641161,-500.0,0.00017015,2]
[402949052,1769010641171,-500.0,0.00017015,2]
[402949053,1769010641180,-500.0,0.00017015,2]
[402949054,1769010641189,-500.0,0.00017015,2]
[402949055,1769010641198,-521.74793843,0.00017015,2]
[402949056,1769010641208,-200.6,0.00017062,2]
[402949057,1769010641439,-238.78,0.00017076,2]
[402949058,1769010641449,-21841.8461667,0.00017092,2]
[402949059,1769010641458,-994.41,0.00017095,2]
[402949060,1769010641468,-521.32,0.00017112,2]
[402949061,1769010641478,-709.03488781,0.00017168,2]
[402949062,1769010641487,-500.0,0.00017173,2]
[402949063,1769010641496,-500.0,0.00017173,2]
[402949064,1769010641505,-500.0,0.00017173,2]
[402949065,1769010641514,-500.0,0.00017173,2]
[402949066,1769010641524,-605.56754048,0.00017173,2]
[402949067,1769010641533,-500.0,0.00017173,2]
[402949068,1769010641546,-500.0,0.00017173,2]
[402949069,1769010641555,-500.0,0.00017173,2]
[402949070,1769010641564,-500.0,0.00017173,2]
[402949071,1769010641577,-500.0,0.00017173,2]
[402949072,1769010641586,-500.0,0.00017173,2]
[402949073,1769010641595,-279.18333591,0.00017173,2]
[402949074,1769010641604,-500.94467747,0.00017173,2]
[402949075,1769010641613,-167.87587796,0.00017173,2]
[402949076,1769010641622,-500.0,0.00017173,2]
[402949077,1769010641631,-500.0,0.00017173,2]
[402949078,1769010641641,-500.44081703,0.00017173,2]
[402949079,1769010641650,-163.65383635,0.00017173,2]
[402949080,1769010641660,-500.0,0.00017173,2]
[402949081,1769010641669,-500.0,0.00017173,2]
[402949082,1769010641679,-500.0,0.00017173,2]
[402949083,1769010641689,-500.24354149,0.00017173,2]
[402949084,1769010641700,-502.57997666,0.00017173,2]
[402949085,1769010641709,-500.0,0.00017173,2]
[402949086,1769010641719,-500.0,0.00017173,2]
[402949087,1769010641728,-500.0,0.00017173,2]
[402949088,1769010641737,-500.0,0.00017173,2]
[402949089,1769010641746,-166.57282596,0.00017173,2]
[402949090,1769010641755,-500.0,0.00017173,2]
[402949091,1769010641766,-500.0,0.00017173,2]
[402949092,1769010641775,-500.0,0.00017173,2]
[402949093,1769010641784,-166.15547505,0.00017173,2]
[402949094,1769010641794,-500.0,0.00017173,2]
[402949095,1769010641804,-500.36019469,0.00017173,2]
[402949096,1769010641813,-500.0,0.00017173,2]
[402949097,1769010641823,-500.53278225,0.00017173,2]
[402949098,1769010641832,-500.0,0.00017173,2]
[402949099,1769010641841,-500.0,0.00017173,2]
[402949100,1769010641851,-500.54717654,0.00017173,2]
[402949101,1769010641860,-162.82594348,0.00017173,2]
[402949102,1769010641869,-500.0,0.00017173,2]
[402949103,1769010641879,-500.0,0.00017194,2]
[402949104,1769010641887,-500.0,0.00017194,2]
[402949105,1769010641896,-500.0,0.00017194,2]
[402949106,1769010641907,-500.0,0.00017194,2]
[402949107,1769010641916,-257.99612183,0.00017273,2]
[402949108,1769010641926,-500.0,0.00017273,2]
[402949109,1769010641936,-550.70733566,0.00017273,2]
[402949110,1769010641947,-500.12560695,0.00017273,2]
[402949111,1769010641956,-500.0,0.00017273,2]
[402949112,1769010641966,-500.0,0.00017273,2]
[402949113,1769010641975,-500.0,0.00017273,2]
[402949114,1769010641986,-500.15189466,0.00017273,2]
[402949115,1769010641995,-500.73381826,0.00017273,2]
[402949116,1769010642004,-500.79549494,0.00017273,2]
[402949117,1769010642014,-500.0,0.00017273,2]
[402949118,1769010642023,-500.0,0.00017273,2]
[402949119,1769010642033,-500.0,0.00017273,2]
[402949120,1769010642043,-159.96427776,0.00017273,2]
[402949121,1769010642053,-500.0,0.00017273,2]
[402949122,1769010642062,-500.0,0.00017273,2]
[402949123,1769010642072,-500.0,0.00017273,2]
[402949124,1769010642082,-500.0,0.00017273,2]
[402949125,1769010642091,-500.0,0.00017273,2]
[402949126,1769010642100,-500.0,0.00017273,2]
[402949127,1769010642109,-500.0,0.00017273,2]
[402949128,1769010642118,-21841.8461667,0.00017294,2]
[402949129,1769010642126,-508.92671197,0.00017369,2]
[402949130,1769010642136,-994.41,0.00017369,2]
[402949131,1769010642145,-490.72042144,0.00017371,2]
[402949132,1769010642153,-709.03488781,0.00017412,2]
[402949133,1769010642163,-21841.8461667,0.00017496,2]
[402949134,1769010642171,-166.66,0.00017497,2]
[402949135,1769010642182,-209.43,0.00017552,2]
[402949136,1769010642191,-420.0,0.00017579,2]
[402949137,1769010642200,-624.9530238,0.00017609,2]
[402949138,1769010642209,-1000.0,0.00017611,2]
[402949139,1769010642218,-1000.0,0.00017612,2]
[402949140,1769010642227,-1000.0,0.00017612,2]
[402949141,1769010642236,-1000.0,0.00017616,2]
[402949142,1769010642245,-1000.0,0.00017634,2]
[402949143,1769010642255,-1000.0,0.00017641,2]
[402949144,1769010642264,-994.41,0.00017643,2]
[402949145,1769010642274,-1000.0,0.00017644,2]
[402949146,1769010642283,-1000.0,0.00017644,2]
[402949147,1769010642294,-1000.0,0.00017645,2]
[402949148,1769010642303,-1000.0,0.00017645,2]
[402949149,1769010642313,-709.03488781,0.00017656,2]
[402949150,1769010642322,-1000.0,0.00017658,2]
[402949151,1769010642331,-1680.0,0.00017668,2]
[402949152,1769010642341,-1000.0,0.00017676,2]
[402949153,1769010642351,-2174.0,0.00017679,2]
[402949154,1769010642360,-1000.0,0.00017684,2]
[402949155,1769010642369,-292.36869297,0.00017688,2]
[402949156,1769010642378,-250.0,0.0001769,2]
[402949157,1769010642388,-1000.0,0.00017696,2]
[402949158,1769010642396,-266.6372604,0.00017696,6]
[402949159,1769010642405,-21841.8461667,0.00017698,2]
[402949160,1769010642415,-521.32,0.00017709,2]
[402949161,1769010642424,-1000.0,0.00017718,2]
[402949162,1769010642433,-1000.0,0.0001772,2]
[402949163,1769010642443,-1004.22603028,0.00017721,2]
[402949164,1769010642452,-1001.85923341,0.00017721,2]
[402949165,1769010642462,-1000.0,0.00017721,2]
[402949166,1769010642471,-512.65188463,0.00017721,2]
[402949167,1769010642480,-1000.0,0.00017721,2]
[402949168,1769010642489,-1000.0,0.00017721,2]
[402949169,1769010642498,-1000.0,0.00017721,2]
[402949170,1769010642507,-1000.0,0.00017721,2]
[402949171,1769010642516,-1000.0,0.00017721,2]
[402949172,1769010642526,-1000.0,0.00017721,2]
[402949173,1769010642536,-500.67790697,0.00017721,2]
[402949174,1769010642545,-500.58756359,0.00017721,2]
[402949175,1769010642554,-1000.0,0.00017721,2]
[402949176,1769010642564,-500.0,0.00017721,2]
[402949177,1769010642573,-1000.0,0.00017721,2]
[402949178,1769010642583,-500.47917453,0.00017721,2]
[402949179,1769010642592,-1000.0,0.00017721,2]
[402949180,1769010642601,-1000.0,0.00017721,2]
[402949182,1769010642611,-1000.0,0.00017721,2]
[402949184,1769010642620,-700.78433745,0.00017721,2]
[402949185,1769010642629,-906.24694652,0.00017721,2]
[402949186,1769010642639,-1000.0,0.00017721,2]
[402949187,1769010642648,-1000.0,0.00017721,2]
[402949188,1769010642657,-837.2193742,0.00017721,2]
[402949189,1769010642667,-1000.0,0.00017723,2]
[402949190,1769010642676,-1000.0,0.00017741,2]
[402949191,1769010642685,-1000.0,0.00017742,2]
[402949192,1769010642695,-1000.0,0.00017742,2]
[402949193,1769010642704,-1000.0,0.00017746,2]
[402949194,1769010642713,-1000.0,0.00017748,2]
[402949195,1769010642723,-1000.0,0.00017755,2]
[402949197,1769010642732,-1000.0,0.00017759,2]
[402949199,1769010642741,-1000.0,0.00017766,2]
[402949200,1769010642750,-1000.0,0.0001777,2]
[402949202,1769010642759,-150.0,0.00017789,2]
[402949204,1769010642769,-1000.0,0.0001779,2]
[402949206,1769010642779,-1000.0,0.0001779,2]
[402949208,1769010642790,-1000.0,0.00017791,2]
[402949209,1769010642799,-250.0,0.00017799,2]
[402949210,1769010642809,-600.0,0.00017799,2]
[402949211,1769010642819,-250.0,0.00017799,2]
[402949212,1769010642828,-300.0,0.000178,2]
[402949213,1769010642838,-5000.0,0.000178,2]
[402949214,1769010642847,-193.0,0.000178,2]
[402949215,1769010642857,-195.0,0.000178,2]
[402949216,1769010642866,-2500.0,0.000178,2]
[402949217,1769010642876,-600.0,0.000178,2]
[402949218,1769010642886,-300.0,0.000178,2]
[402949219,1769010642896,-1000.0,0.00017801,2]
[402949220,1769010642905,-1000.0,0.00017811,2]
[402949221,1769010642914,-1000.0,0.00017821,2]
[402949222,1769010642924,-731.45242292,0.00017821,2]
[402949223,1769010642937,-1000.0,0.00017821,2]
[402949224,1769010642946,-500.0,0.00017821,2]
[402949225,1769010642955,-1000.0,0.00017821,2]
[402949226,1769010642964,-586.66357325,0.00017821,2]
[402949227,1769010642974,-1000.0,0.00017821,2]
[402949228,1769010642983,-500.0,0.00017821,2]
[402949229,1769010642993,-127009.25320044,0.0001783,2]
[402949230,1769010643002,-1000.0,0.00017847,2]
[402949231,1769010643012,-1000.0,0.00017855,2]
[402949232,1769010643021,-200.0,0.00017856,2]
[402949233,1769010643030,-1295.01895614,0.00017871,2]
[402949234,1769010643039,-2284.56694214,0.00017871,2]
[402949235,1769010643048,-3417.57551446,0.00017871,2]
[402949236,1769010643057,-4624.092,0.00017871,2]
[402949237,1769010643067,-1000.0,0.00017878,2]
[402949238,1769010643075,-500.0,0.00017883,2]
[402949239,1769010643084,-502.32638867,0.00017883,2]
[402949240,1769010643093,-500.0,0.00017883,2]
[402949241,1769010643103,-188.20213014,0.00017883,2]
[402949242,1769010643112,-500.0,0.00017883,2]
[402949243,1769010643121,-500.0,0.00017883,2]
[402949244,1769010643130,-500.0,0.00017883,2]
[402949245,1769010643139,-500.0,0.00017883,2]
[402949246,1769010643148,-249.28950426,0.00017883,2]
[402949247,1769010643157,-150.0,0.00017883,2]
[402949248,1769010643166,-150.0,0.00017895,2]
[402949249,1769010643176,-1177.58596831,0.00017899,5]
[402949250,1769010643185,-253.13099999,0.000179,3]
[402949251,1769010643194,-2803.9145,0.000179,2]
[402949252,1769010643203,-396.58457824,0.000179,3]
[402949253,1769010643213,-709.03488781,0.000179,2]
[402949254,1769010643222,-177.51312027,0.000179,2]
[402949255,1769010643231,-195.92069658,0.000179,3]
[402949256,1769010643241,-21841.8461667,0.000179,2]
[402949257,1769010643250,-5137.89368202,0.000179,2]
[402949258,1769010643259,-500.0,0.000179,2]
[402949259,1769010643267,-500.0,0.000179,2]
[402949260,1769010643276,-500.0,0.000179,2]
[402949261,1769010643286,-500.0,0.000179,2]
[402949262,1769010643296,-500.0,0.000179,2]
[402949263,1769010643305,-500.0,0.000179,2]
[402949264,1769010643315,-383.17910855,0.000179,2]
[402949265,1769010643324,-994.41,0.00017917,2]
[402949266,1769010643333,-2174.0,0.00017967,2]
[402949267,1769010643342,-1000.0,0.0001797,2]
[402949268,1769010643352,-1000.0,0.0001797,2]
[402949269,1769010643362,-500.0,0.0001797,2]
[402949270,1769010643371,-1000.0,0.0001797,2]
[402949271,1769010643381,-500.0,0.0001797,2]
[402949273,1769010643391,-1000.0,0.0001797,2]
[402949275,1769010643400,-500.0,0.0001797,2]
[402949276,1769010643410,-1321.57411122,0.0001797,2]
[402949277,1769010643419,-694.631145,0.0001797,2]
[402949278,1769010643429,-1000.0,0.0001797,2]
[402949281,1769010643438,-500.0,0.0001797,2]
[402949283,1769010643447,-15055.0,0.00017973,2]
[402949285,1769010643456,-30935.0,0.00017973,2]
[402949286,1769010643465,-150.0,0.00017973,2]
[402949287,1769010643474,-150.0,0.00017973,2]
[402949288,1769010643483,-500.0,0.00017982,2]
[402949289,1769010643493,-1202.74527863,0.0001799,2]
[402949290,1769010643502,-1202.74527863,0.0001799,2]
[402949291,1769010643511,-150.0,0.00017991,2]
[402949292,1769010643520,-150.0,0.00017992,2]
[402949293,1769010643529,-2174.0,0.00017995,2]
[402949294,1769010643542,-151.0,0.00017997,2]
[402949295,1769010643551,-231.0,0.00017998,2]
[402949296,1769010643560,-150.0,0.00017999,2]
[402949297,1769010643570,-252.48903335,0.00017999,2]
[402949298,1769010643580,-1047.06319098,0.00017999,5]
[402949299,1769010643590,-300.0,0.00017999,2]
[402949300,1769010643602,-500.0,0.00017999,2]
[402949301,1769010643613,-500.0,0.00017999,2]
[402949302,1769010643624,-163.26702471,0.00017999,2]
[402949303,1769010643634,-500.0,0.00017999,2]
[402949304,1769010643644,-414.0821579,0.00017999,2]
[402949305,1769010643654,-300.0,0.00017999,2]
[402949306,1769010643663,-249.84105612,0.00017999,2]
[402949307,1769010643673,-300.0,0.00017999,2]
[402949308,1769010643682,-423.09867107,0.00017999,2]
[402949309,1769010643692,-666.0,0.00017999,2]
[402949310,1769010643703,-300.0,0.00017999,2]
[402949311,1769010643712,-666.0,0.00017999,2]
[402949312,1769010643721,-155.0,0.00017999,2]
[402949313,1769010643731,-299.2286621,0.00017999,2]
[402949314,1769010643740,-391.13615638,0.00017999,2]
[402949315,1769010643750,-300.0,0.00017999,2]
[402949316,1769010643760,-300.0,0.00017999,2]
[402949317,1769010643771,-280.88620829,0.00017999,2]
[402949318,1769010643780,-366.59852564,0.00017999,2]
[402949319,1769010643791,-505.59517493,0.00017999,2]
[402949320,1769010643802,-300.0,0.00017999,2]
[402949321,1769010643813,-150.0,0.00017999,2]
[402949322,1769010643823,-150.0,0.00017999,2]
[402949323,1769010643833,-183.4884983,0.00017999,2]
[402949324,1769010643842,-211.16484819,0.00017999,2]
[402949325,1769010643851,-217.72483927,0.00017999,2]
[402949326,1769010643860,-500.0,0.00017999,2]
[402949327,1769010643869,-490.73152826,0.00017999,2]
[402949328,1769010643879,-4313835.81793989,0.00018,2]
[402949329,1769010644995,-500.0,0.00016082,2]
[402949330,1769010645006,-500.0,0.00016438,2]
[402949331,1769010645015,-670.25,0.00018,2]
[402949332,1769010645067,-957.5,0.00018,2]
[402949333,1769010645079,-1091.566251,0.00018,2]
[402949334,1769010645090,-5261.13706738,0.00018,2]
[402949335,1769010645100,-53895.29090435,0.00018,2]
[402949336,1769010645111,-258.6914863,0.00018,2]
[402949337,1769010645122,-617.95352458,0.00018,2]
[402949338,1769010645134,-4296940.11639175,0.00018,2]
[402949339,1769010645144,-176275.29398471,0.00018,2]
[402949340,1769010645153,-2909.99999999,0.00018,2]
[402949341,1769010645163,-2619541.92863595,0.00018,2]
[402949342,1769010645173,-4979.76509798,0.00018,2]
[402949343,1769010645184,-590.9981233,0.00018,2]
[402949344,1769010645195,-525.16036174,0.00018,2]
[402949345,1769010645205,-999.0,0.00018,2]
[402949346,1769010645216,-38177.95078409,0.00018,2]
[402949347,1769010645267,-225957.97847872,0.00018,2]
[402949348,1769010645277,-600.0,0.00018,2]
[402949349,1769010645286,-7550.0124224,0.00018,2]
[402949350,1769010645297,-200.0,0.00018,2]
[402949351,1769010645306,-151.0,0.00018,2]
[402949352,1769010645315,-202.56119632,0.00018,2]
[402949353,1769010645324,-364.61015337,0.00018,2]
[402949354,1769010645333,-1022.51,0.0001801,2]
[402949355,1769010645343,-166.66,0.00018022,2]
[402949356,1769010645352,-150.0,0.00018028,2]
[402949357,1769010645361,-530.71,0.00018039,2]
[402949358,1769010645371,-507.94,0.00018049,2]
[402949359,1769010645380,-200.0,0.00018083,2]
[402949360,1769010645389,-1510.0,0.00018146,2]
[402949361,1769010645398,-2174.0,0.00018183,2]
[402949362,1769010645407,-994.41,0.00018191,2]
[402949363,1769010645417,-1510.0,0.00018199,2]
[402949364,1769010645426,-300.0,0.00018215,2]
[402949365,1769010645435,-300.0,0.00018215,2]
[402949366,1769010645444,-666.0,0.00018215,2]
[402949367,1769010645453,-300.0,0.00018215,2]
[402949368,1769010645462,-300.0,0.00018215,2]
[402949369,1769010645471,-578.20924308,0.00018216,2]
[402949370,1769010645480,-250.05741751,0.00018216,2]
[402949371,1769010645489,-194.72792766,0.00018216,2]
[402949372,1769010645499,-174.61919141,0.00018216,2]
[402949373,1769010645508,-2000.0,0.00018216,2]
[402949374,1769010645518,-533.88981491,0.00018216,2]
[402949375,1769010645527,-2000.0,0.00018216,2]
[402949376,1769010645537,-2000.0,0.00018216,2]
[402949377,1769010645546,-2000.0,0.00018216,2]
[402949378,1769010645556,-2000.0,0.00018216,2]
[402949379,1769010645565,-2000.0,0.00018216,2]
[402949380,1769010645574,-2000.0,0.00018216,2]
[402949381,1769010645583,-2000.0,0.00018216,2]
[402949382,1769010645592,-2000.0,0.00018216,2]
[402949383,1769010645601,-2000.0,0.00018216,2]
[402949384,1769010645610,-2000.0,0.00018216,2]
[402949385,1769010645620,-2000.0,0.00018216,2]
[402949386,1769010645629,-2000.0,0.00018216,2]
[402949387,1769010645638,-250.0,0.00018216,2]
[402949388,1769010645647,-250.0,0.00018216,2]
[402949389,1769010645656,-250.0,0.00018216,2]
[402949390,1769010645666,-250.0,0.00018216,2]
[402949391,1769010645676,-250.0,0.00018216,2]
[402949392,1769010645685,-250.0,0.00018216,2]
[402949393,1769010645694,-250.0,0.00018216,2]
[402949394,1769010645704,-250.0,0.00018216,2]
[402949395,1769010645713,-250.0,0.00018216,2]
[402949396,1769010645722,-250.0,0.00018216,2]
[402949397,1769010645731,-250.0,0.00018216,2]
[402949398,1769010645740,-250.0,0.00018216,2]
[402949399,1769010645748,-322.6107,0.00018216,2]
[402949400,1769010645757,-151.0,0.00018216,2]
[402949401,1769010645767,-359.76179104,0.00018216,2]
[402949402,1769010645776,-250.0,0.00018216,2]
[402949403,1769010645785,-250.0,0.00018216,2]
[402949404,1769010645795,-250.0,0.00018216,2]
[402949405,1769010645805,-250.0,0.00018216,2]
[402949406,1769010645820,-303.07673906,0.00018216,2]
[402949407,1769010645829,-263.31471796,0.00018216,2]
[402949408,1769010645839,-250.0,0.00018216,2]
[402949409,1769010645849,-3002.70085788,0.00018216,2]
[402949410,1769010645858,-250.0,0.00018216,2]
[402949411,1769010645868,-2000.0,0.00018216,2]
[402949412,1769010645878,-250.0,0.00018216,2]
[402949413,1769010645888,-250.0,0.00018216,2]
[402949414,1769010645897,-64.82075321,0.00018216,2]
[402949415,1769010645910,-1935.17924679,0.00018216,2]
[402949416,1769010645919,-250.0,0.00018216,2]
[402949417,1769010645929,-250.0,0.00018216,2]
[402949418,1769010645942,-151.0,0.00018216,2]
[402949419,1769010645952,-250.0,0.00018216,2]
[402949420,1769010645961,-250.0,0.00018216,2]
[402949421,1769010645971,-2000.0,0.00018216,2]
[402949422,1769010645981,-250.0,0.00018216,2]
[402949423,1769010645991,-2000.0,0.00018216,2]
[402949424,1769010646000,-250.0,0.00018216,2]
[402949425,1769010646012,-2000.0,0.00018216,2]
[402949426,1769010646022,-250.0,0.00018216,2]
[402949427,1769010646031,-2000.0,0.00018216,2]
[402949428,1769010646042,-250.0,0.00018216,2]
[402949429,1769010646051,-2000.0,0.00018216,2]
[402949430,1769010646060,-303.89373247,0.00018216,2]
[402949431,1769010646070,-2000.0,0.00018216,2]
[402949432,1769010646079,-2000.0,0.00018216,2]
[402949433,1769010646088,-1000.0,0.00018216,2]
[402949434,1769010646097,-2000.0,0.00018216,2]
[402949435,1769010646107,-500.0,0.00018216,2]
[402949436,1769010646116,-1000.0,0.00018216,2]
[402949437,1769010646125,-2000.0,0.00018216,2]
[402949438,1769010646135,-500.0,0.00018216,2]
[402949439,1769010646145,-1000.0,0.00018216,2]
[402949440,1769010646154,-2000.0,0.00018216,2]
[402949441,1769010646163,-500.0,0.00018216,2]
[402949442,1769010646173,-1000.0,0.00018216,2]
[402949443,1769010646183,-2000.0,0.00018216,2]
[402949444,1769010646192,-500.0,0.00018216,2]
[402949445,1769010646201,-1000.0,0.00018216,2]
[402949446,1769010646210,-500.0,0.00018216,2]
[402949447,1769010646220,-1000.0,0.00018216,2]
[402949448,1769010646229,-250.0,0.00018216,2]
[402949449,1769010646238,-500.0,0.00018216,2]
[402949450,1769010646247,-1000.0,0.00018216,2]
[402949451,1769010646256,-250.0,0.00018216,2]
[402949452,1769010646266,-500.0,0.00018216,2]
[402949453,1769010646278,-1000.0,0.00018216,2]
[402949454,1769010646288,-250.0,0.00018216,2]
[402949455,1769010646299,-250.0,0.00018216,2]
[402949456,1769010646308,-500.0,0.00018216,2]
[402949457,1769010646318,-1000.0,0.00018216,2]
[402949458,1769010646327,-250.0,0.00018216,2]
[402949459,1769010646337,-250.0,0.00018216,2]
[402949460,1769010646346,-42.24155079,0.00018216,2]
[402949461,1769010646372,-457.75844921,0.00018216,2]
[402949462,1769010646381,-61.80268711,0.00018216,2]
[402949463,1769010646392,-298.14479499,0.00018216,2]
[402949464,1769010647186,3878.26,0.00015768,2]
[402949465,1769010647873,-4674.51865506,0.00016283,2]
[402949466,1769010649092,-4213.50725661,0.00016283,2]
[402949467,1769010649104,-520.6368647,0.00016338,2]
[402949468,1769010649116,-640.0525179,0.00018216,2]
[402949469,1769010649127,-250.0,0.00018216,2]
[402949470,1769010649139,-500.0,0.00018216,2]
[402949471,1769010649149,-250.0,0.00018216,2]
[402949472,1769010649158,-1000.0,0.00018216,2]
[402949473,1769010649167,-250.0,0.00018216,2]
[402949474,1769010649176,-500.0,0.00018216,2]
[402949475,1769010649185,-250.0,0.00018216,2]
[402949476,1769010649195,-500.0,0.00018216,2]
[402949477,1769010649204,-250.0,0.00018216,2]
[402949478,1769010649213,-500.0,0.00018216,2]
[402949479,1769010649222,-250.0,0.00018216,2]
[402949480,1769010649231,-250.0,0.00018216,2]
[402949481,1769010649239,-500.0,0.00018216,2]
[402949482,1769010649248,-250.0,0.00018216,2]
[402949483,1769010649257,-250.0,0.00018216,2]
[402949484,1769010649266,-250.0,0.00018216,2]
[402949485,1769010649276,-250.0,0.00018216,2]
[402949486,1769010649285,-250.0,0.00018216,2]
[402949487,1769010649294,-151.0,0.00018216,2]
[402949488,1769010649304,-250.0,0.00018216,2]
[402949489,1769010649313,-250.0,0.00018216,2]
[402949490,1769010649322,-151.0,0.00018216,2]
[402949491,1769010649331,-250.0,0.00018216,2]
[402949492,1769010649340,-250.0,0.00018216,2]
[402949493,1769010649349,-151.0,0.00018216,2]
[402949494,1769010649358,-250.0,0.00018216,2]
[402949495,1769010649367,-250.0,0.00018216,2]
[402949496,1769010649377,-151.0,0.00018216,2]
[402949497,1769010649386,-250.0,0.00018216,2]
[402949498,1769010649395,-151.0,0.00018216,2]
[402949499,1769010649404,-250.0,0.00018216,2]
[402949500,1769010649413,-151.0,0.00018216,2]
[402949501,1769010649422,-151.0,0.00018216,2]
[402949502,1769010649431,-151.0,0.00018216,2]
[402949503,1769010649439,-151.0,0.00018216,2]
[402949504,1769010649448,-151.0,0.00018216,2]
[402949505,1769010649457,-500.0,0.00018216,2]
[402949506,1769010649466,-151.0,0.00018216,2]
[402949507,1769010649475,-500.0,0.00018216,2]
[402949508,1769010649484,-500.0,0.00018216,2]
[402949509,1769010649493,-151.0,0.00018216,2]
[402949510,1769010649502,-500.0,0.00018216,2]
[402949511,1769010649511,-151.0,0.00018216,2]
[402949512,1769010649520,-500.0,0.00018216,2]
[402949513,1769010649529,-500.0,0.00018216,2]
[402949514,1769010649537,-500.0,0.00018216,2]
[402949515,1769010649547,-500.0,0.00018216,2]
[402949516,1769010649557,-500.0,0.00018216,2]
[402949517,1769010649566,-500.0,0.00018216,2]
[402949518,1769010649576,-500.0,0.00018216,2]
[402949519,1769010649586,-500.0,0.00018216,2]
[402949520,1769010649597,-500.0,0.00018216,2]
[402949521,1769010649607,-640.85595563,0.00018216,2]
[402949522,1769010649617,-665.96586545,0.00018267,2]
[402949523,1769010649627,-506.42593625,0.00018268,2]
[402949524,1769010649636,-1500.0,0.00018268,2]
[402949525,1769010649646,-1500.0,0.00018268,2]
[402949526,1769010649656,-1500.0,0.00018268,2]
[402949527,1769010649665,-1489.94559639,0.00018268,2]